[Event "9th Amsterdam Science Park B 2019"]
[Site "Amsterdam"]
[Date "2019.07.14"]
[Round "9.5"]
[White "Cardon, Emile"]
[Black "De Ruiter, Tom"]
[Result "0-1"]
[ECO "B50"]
[WhiteElo "1934"]
[BlackElo "2010"]
[Annotator "NA"]
[PlyCount "94"]
[EventDate "2019.07.06"]
[EventType "swiss"]
[EventCountry "NED"]
[SourceTitle "playchess.com"]
[Source "ChessBase"]
[SourceQuality "1"]
[TimeControl "40/5400+30:1800+30"]

1. e4 {[%emt 0:02:04]} c5 {[%emt 0:00:00]} 2. Nf3 {[%emt 0:00:21]} d6 {[%emt 0:00:00]} 3. c3 {[%emt 0:00:19]} Nf6 {[%emt 0:00:12]} 4. Bd3 {[%emt 0:00:20]} Bg4 {[%emt 0:04:18]} 5. Bc2 {[%emt 0:01:47]} e6 {[%emt 0:03:39]} 6. O-O {[%emt 0:00:42]} Nc6 {[%emt 0:02:25]} 7. h3 {[%emt 0:00:43]} Bh5 {[%emt 0:00:18]} 8. d3 {[%emt 0:00:09]} Be7 {[%emt 0:01:16]} 9. Nbd2 {[%emt 0:02:00]} d5 {[%emt 0:07:02]} 10. Qe1 {[%emt 0:10:23]} Qc7 {[%emt 0:08:32]} 11. e5 {[%emt 0:10:19]} Nd7 {[%emt 0:00:40]} 12. d4 {[%emt 0:00:25]} cxd4 {[%emt 0:01:13]} 13. cxd4 {[%emt 0:00:09]} Nb4 {[%emt 0:00:18]} 14. Bb1 {[%emt 0:04:48]} Nc2 {[%emt 0:03:20]} 15. Bxc2 {[%emt 0:00:21]} Qxc2 {[%emt 0:00:02]} 16. g4 {[%emt 0:01:58]} Bg6 {[%emt 0:00:14]} 17. Qe3 {[%emt 0:03:32]} Rc8 {[%emt 0:14:16]} 18. Ne1 {[%emt 0:04:02]} Qc6 {[%emt 0:03:06]} 19. f4 {[%emt 0:01:34]} f5 {[%emt 0:05:49]} 20. Ndf3 {[%emt 0:01:21]} O-O {[%emt 0:03:16]} 21. Bd2 {[%emt 0:00:49]} Qa6 {[%emt 0:01:35]} 22. g5 {[%emt 0:07:58]} Nb6 {[%emt 0:01:35]} 23. b3 {[%emt 0:00:15]} Ba3 {[%emt 0:01:14]} 24. Qd3 {[%emt 0:04:45]} Be8 {[%emt 0:04:39]} 25. Qxa6 {[%emt 0:00:13]} bxa6 {[%emt 0:00:01]} 26. Nd3 {[%emt 0:04:07]} Bb5 {[%emt 0:00:25]} 27. Nfe1 {[%emt 0:00:05]} Rf7 {[%emt 0:08:21]} 28. Rf3 {[%emt 0:04:04]} Rfc7 {[%emt 0:01:48]} 29. Ba5 {[%emt 0:04:47]} Kf7 {[%emt 0:05:24]} 30. h4 {[%emt 0:01:10]} Kg6 {[%emt 0:00:34]} 31. Kg2 {[%emt 0:01:39]} Bxd3 {[%emt 0:04:04]} 32. Rxd3 {[%emt 0:03:55]} Bb2 {[%emt 0:02:46]} 33. Rad1 {[%emt 0:01:49]} Bc3 {[%emt 0:00:43]} 34. Bxc3 {[%emt 0:03:20]} Rxc3 {[%emt 0:00:02]} 35. R1d2 {[%emt 0:00:36]} Kh5 {[%emt 0:05:35]} 36. Kg3 {[%emt 0:00:19]} Nd7 {[%emt 0:00:42]} 37. Nf3 {[%emt 0:02:50]} a5 {[%emt 0:02:50]} 38. Ne1 {[%emt 0:03:22]} Rc1 {[%emt 0:02:10]} 39. Rd1 {[%emt 0:00:19]} Nb8 {[%emt 0:00:48]} 40. Nf3 {[%emt 0:01:30]} Na6 {[%emt 0:00:24]} 41. Rxc1 {[%emt 0:32:33]} Rxc1 {[%emt 0:30:08]} 42. a3 {[%emt 0:01:29]} Nc7 {[%emt 0:00:35]} 43. a4 {[%emt 0:02:57]} Na6 {[%emt 0:00:15]} 44. Kh3 {[%emt 0:01:50]} Nb4 {[%emt 0:00:35]} 45. Re3 {[%emt 0:00:17]} Na2 {[%emt 0:03:39]} 46. Rd3 {[%emt 0:03:03]} Nc3 {[%emt 0:00:00]} 47. Kg2 {[%emt 0:00:00]} Ne2 0-1

[Event "9th Amsterdam Science Park B 2019"]
[Site "Amsterdam"]
[Date "2019.07.14"]
[Round "9.6"]
[White "Van`t Schip, Richard"]
[Black "Golbach, Floris"]
[Result "1/2-1/2"]
[ECO "D40"]
[WhiteElo "2003"]
[BlackElo "1970"]
[Annotator "NA"]
[PlyCount "80"]
[EventDate "2019.07.06"]
[EventType "swiss"]
[EventCountry "NED"]
[SourceTitle "playchess.com"]
[Source "ChessBase"]
[SourceQuality "1"]
[TimeControl "40/5400+30:1800+30"]

1. e4 {[%emt 0:00:00]} e6 {[%emt 0:00:39]} 2. d4 {[%emt 0:00:00]} d5 {[%emt 0:00:06]} 3. Nd2 {[%emt 0:00:26]} Nf6 {[%emt 0:00:09]} 4. Bd3 {[%emt 0:00:47]} c5 {[%emt 0:03:13]} 5. c3 {[%emt 0:02:34]} cxd4 {[%emt 0:02:00]} 6. cxd4 {[%emt 0:00:53]} Nc6 {[%emt 0:00:08]} 7. Ngf3 {[%emt 0:03:49]} dxe4 {[%emt 0:03:55]} 8. Nxe4 {[%emt 0:00:42]} Be7 {[%emt 0:00:11]} 9. Nc3 {[%emt 0:05:52]} O-O {[%emt 0:04:17]} 10. O-O {[%emt 0:00:17]} Qa5 {[%emt 0:00:54]} 11. Re1 {[%emt 0:10:04]} Rd8 {[%emt 0:03:32]} 12. Be3 {[%emt 0:07:57]} Bd7 {[%emt 0:12:40]} 13. Rc1 {[%emt 0:04:03]} Be8 {[%emt 0:01:43]} 14. Qe2 {[%emt 0:07:13]} a6 {[%emt 0:10:42]} 15. Bb1 {[%emt 0:08:58]} b5 {[%emt 0:10:21]} 16. Red1 {[%emt 0:06:52]} Nb4 {[%emt 0:10:38]} 17. a3 {[%emt 0:15:01]} Nbd5 {[%emt 0:00:17]} 18. Nxd5 {[%emt 0:00:42]} Nxd5 {[%emt 0:00:47]} 19. Ne5 {[%emt 0:01:45]} Rac8 {[%emt 0:01:47]} 20. Qf3 {[%emt 0:06:48]} Rxc1 {[%emt 0:02:54]} 21. Bxc1 {[%emt 0:02:12]} Nf6 {[%emt 0:01:12]} 22. Be3 {[%emt 0:01:27]} b4 {[%emt 0:01:50]} 23. axb4 {[%emt 0:02:24]} Qxb4 {[%emt 0:00:41]} 24. Qe2 {[%emt 0:01:43]} Rb8 {[%emt 0:05:21]} 25. Qxa6 Qxb2 {[%emt 0:00:09]} 26. Qd3 {[%emt 0:03:55]} Bb5 {[%emt 0:08:12]} 27. Qc2 {[%emt 0:00:08]} Ba4 {[%emt 0:00:24]} 28. Qxb2 {[%emt 0:00:29]} Rxb2 {[%emt 0:00:05]} 29. Rc1 {[%emt 0:01:37]} Rb8 {[%emt 0:01:54]} 30. Bd3 {[%emt 0:00:52]} Nd5 {[%emt 0:00:43]} 31. Rb1 {[%emt 0:01:55]} Rd8 {[%emt 0:04:55]} 32. Ra1 {[%emt 0:00:42]} Be8 {[%emt 0:00:32]} 33. Rb1 {[%emt 0:01:28]} h5 {[%emt 0:01:17]} 34. h3 {[%emt 0:00:37]} Bf6 {[%emt 0:00:06]} 35. Nf3 {[%emt 0:00:36]} Nc3 {[%emt 0:01:30]} 36. Rb3 {[%emt 0:00:44]} Nd5 {[%emt 0:00:30]} 37. Bb5 {[%emt 0:00:37]} Nxe3 {[%emt 0:03:44]} 38. fxe3 {[%emt 0:00:26]} g6 {[%emt 0:00:25]} 39. Bxe8 Rxe8 {[%emt 0:00:05]} 40. Kf2 {[%emt 0:01:13]} Re7 {[%emt 0:00:51]} 1/2-1/2

[Event "9th Amsterdam Science Park B 2019"]
[Site "Amsterdam"]
[Date "2019.07.14"]
[Round "9.7"]
[White "Zegstroo, Martin"]
[Black "Honkoop, Mark"]
[Result "0-1"]
[ECO "C38"]
[WhiteElo "1798"]
[BlackElo "1670"]
[Annotator "NA"]
[PlyCount "66"]
[EventDate "2019.07.06"]
[EventType "swiss"]
[EventCountry "NED"]
[SourceTitle "playchess.com"]
[Source "ChessBase"]
[SourceQuality "1"]
[TimeControl "40/5400+30:1800+30"]

1. e4 {[%emt 0:00:00]} e5 {[%emt 0:00:00]} 2. f4 {[%emt 0:00:00]} exf4 {[%emt 0:04:41]} 3. Nf3 {[%emt 0:00:00]} g5 {[%emt 0:01:05]} 4. Bc4 {[%emt 0:00:00]} Bg7 {[%emt 0:08:23]} 5. O-O {[%emt 0:00:38]} d6 {[%emt 0:01:55]} 6. d4 {[%emt 0:00:52]} Nc6 {[%emt 0:08:52]} 7. c3 {[%emt 0:00:51]} Nh6 {[%emt 0:16:54]} 8. g3 {[%emt 0:08:05]} O-O {[%emt 0:14:29]} 9. gxf4 {[%emt 0:00:38]} g4 {[%emt 0:01:13]} 10. Ng5 {[%emt 0:05:06]} Na5 {[%emt 0:07:38]} 11. Bd3 {[%emt 0:01:32]} f6 {[%emt 0:02:42]} 12. b4 {[%emt 0:00:23]} fxg5 {[%emt 0:00:53]} 13. bxa5 {[%emt 0:00:40]} gxf4 {[%emt 0:01:03]} 14. Bxf4 {[%emt 0:02:56]} Be6 {[%emt 0:04:03]} 15. Nd2 {[%emt 0:01:54]} Nf7 {[%emt 0:02:21]} 16. Rb1 {[%emt 0:06:33]} b6 {[%emt 0:02:32]} 17. Qc2 {[%emt 0:04:48]} Kh8 {[%emt 0:02:01]} 18. Rb5 {[%emt 0:01:45]} c5 {[%emt 0:01:50]} 19. dxc5 {[%emt 0:07:10]} bxc5 {[%emt 0:00:53]} 20. Bc4 {[%emt 0:01:40]} Qd7 {[%emt 0:02:32]} 21. Rbb1 {[%emt 0:00:37]} Ne5 {[%emt 0:02:07]} 22. Bxe5 {[%emt 0:03:37]} Bxe5 {[%emt 0:00:23]} 23. Qd3 {[%emt 0:02:44]} Rg8 {[%emt 0:03:56]} 24. Bxe6 {[%emt 0:02:49]} Qxe6 {[%emt 0:00:07]} 25. Nc4 {[%emt 0:00:30]} g3 {[%emt 0:02:45]} 26. Nxe5 {[%emt 0:04:11]} gxh2+ {[%emt 0:00:28]} 27. Kh1 {[%emt 0:00:25]} Qxe5 {[%emt 0:00:20]} 28. Rb2 {[%emt 0:03:37]} Rg3 {[%emt 0:03:32]} 29. Qd5 {[%emt 0:00:54]} Rg1+ {[%emt 0:00:38]} 30. Rxg1 {[%emt 0:00:30]} hxg1=Q+ {[%emt 0:00:06]} 31. Kxg1 {[%emt 0:00:23]} Rg8+ {[%emt 0:00:11]} 32. Rg2 {[%emt 0:01:50]} Qxd5 {[%emt 0:00:19]} 33. exd5 {[%emt 0:00:37]} Rxg2+ {[%emt 0:00:12]} 0-1

[Event "9th Amsterdam Science Park B 2019"]
[Site "Amsterdam"]
[Date "2019.07.14"]
[Round "9.8"]
[White "Cohn, Samuel"]
[Black "Hagen, Tejo"]
[Result "1-0"]
[ECO "A85"]
[WhiteElo "1679"]
[BlackElo "1659"]
[Annotator "NA"]
[PlyCount "117"]
[EventDate "2019.07.06"]
[EventType "swiss"]
[EventCountry "NED"]
[SourceTitle "playchess.com"]
[Source "ChessBase"]
[SourceQuality "1"]
[TimeControl "40/5400+30:1800+30"]

1. d4 {[%emt 0:00:00]} f5 {[%emt 0:00:00]} 2. c4 {[%emt 0:00:00]} Nf6 {[%emt 0:00:00]} 3. Nc3 {[%emt 0:00:00]} e6 {[%emt 0:00:13]} 4. g3 {[%emt 0:00:13]} d5 {[%emt 0:00:13]} 5. Bg2 {[%emt 0:00:22]} c6 {[%emt 0:00:10]} 6. Nh3 {[%emt 0:00:25]} Bd6 {[%emt 0:01:04]} 7. O-O {[%emt 0:00:43]} O-O {[%emt 0:00:20]} 8. f3 {[%emt 0:02:25]} e5 {[%emt 0:09:00]} 9. cxd5 {[%emt 0:05:56]} exd4 {[%emt 0:06:01]} 10. dxc6 {[%emt 0:11:32]} Nxc6 {[%emt 0:02:41]} 11. Nb5 {[%emt 0:01:01]} Bc5 {[%emt 0:12:55]} 12. Kh1 {[%emt 0:25:56]} Be6 {[%emt 0:05:16]} 13. Bd2 {[%emt 0:07:10]} Rc8 {[%emt 0:06:05]} 14. Nf4 {[%emt 0:01:30]} Bf7 {[%emt 0:00:28]} 15. Rc1 {[%emt 0:02:17]} Be7 {[%emt 0:11:46]} 16. Qc2 {[%emt 0:11:12]} a6 {[%emt 0:07:51]} 17. Na3 Bxa2 {[%emt 0:09:38]} 18. Qxf5 {[%emt 0:01:57]} Qd7 {[%emt 0:05:01]} 19. Qxd7 {[%emt 0:00:59]} Nxd7 {[%emt 0:00:02]} 20. Bh3 {[%emt 0:00:48]} Nce5 {[%emt 0:07:57]} 21. Nc2 {[%emt 0:03:00]} Bc5 {[%emt 0:01:21]} 22. Be6+ {[%emt 0:01:28]} Bxe6 {[%emt 0:00:19]} 23. Nxe6 {[%emt 0:00:07]} Rfe8 {[%emt 0:02:01]} 24. Nxc5 {[%emt 0:03:06]} Rxc5 {[%emt 0:02:35]} 25. Nxd4 {[%emt 0:00:08]} Rd5 {[%emt 0:02:55]} 26. Bc3 {[%emt 0:00:53]} Nc4 {[%emt 0:00:17]} 27. e4 {[%emt 0:00:25]} Rc5 {[%emt 0:01:43]} 28. Bb4 {[%emt 0:01:54]} Rcc8 {[%emt 0:01:50]} 29. Nf5 {[%emt 0:01:01]} Kf7 {[%emt 0:02:15]} 30. b3 {[%emt 0:00:19]} g6 {[%emt 0:00:42]} 31. Rxc4 {[%emt 0:04:23]} gxf5 {[%emt 0:00:09]} 32. exf5 {[%emt 0:00:55]} Rxc4 {[%emt 0:01:02]} 33. bxc4 {[%emt 0:03:04]} Rc8 {[%emt 0:00:07]} 34. Rd1 {[%emt 0:03:31]} Ne5 {[%emt 0:01:00]} 35. c5 {[%emt 0:01:06]} Rc7 {[%emt 0:00:46]} 36. Kg2 {[%emt 0:00:36]} Nc6 {[%emt 0:00:29]} 37. Bc3 {[%emt 0:00:44]} Ne7 {[%emt 0:00:44]} 38. Bd4 {[%emt 0:05:20]} Nxf5 {[%emt 0:00:19]} 39. Bf2 {[%emt 0:00:13]} Re7 {[%emt 0:00:31]} 40. g4 {[%emt 0:00:29]} Ne3+ {[%emt 0:00:47]} 41. Bxe3 {[%emt 0:30:11]} Rxe3 {[%emt 0:30:14]} 42. Rb1 {[%emt 0:00:00]} Re7 {[%emt 0:00:00]} 43. Rb6 {[%emt 0:00:00]} Rc7 {[%emt 0:00:00]} 44. c6 {[%emt 0:00:00]} bxc6 {[%emt 0:00:00]} 45. Rxa6 {[%emt 0:00:00]} Kg6 {[%emt 0:00:00]} 46. f4 {[%emt 0:00:00]} Kf6 {[%emt 0:00:00]} 47. Kf3 {[%emt 0:00:00]} Ke6 {[%emt 0:00:00]} 48. Ke4 {[%emt 0:00:00]} Kd6 {[%emt 0:00:00]} 49. f5 {[%emt 0:00:00]} Re7+ {[%emt 0:00:00]} 50. Kf4 {[%emt 0:00:00]} Kd5 {[%emt 0:00:00]} 51. Kg5 {[%emt 0:00:00]} c5 {[%emt 0:00:00]} 52. Kf6 {[%emt 0:00:00]} Rc7 {[%emt 0:00:00]} 53. g5 {[%emt 0:00:00]} c4 {[%emt 0:00:00]} 54. g6 {[%emt 0:00:00]} c3 {[%emt 0:00:00]} 55. g7 {[%emt 0:00:04]} Rc8 {[%emt 0:00:00]} 56. Ra1 {[%emt 0:00:24]} Kd4 {[%emt 0:00:00]} 57. Kf7 {[%emt 0:00:46]} Rc7+ {[%emt 0:00:00]} 58. Kg8 {[%emt 0:00:45]} Ke5 {[%emt 0:00:00]} 59. Kh8 {[%emt 0:00:18]} 1-0

[Event "9th Amsterdam Science Park B 2019"]
[Site "Amsterdam"]
[Date "2019.07.14"]
[Round "9.9"]
[White "Kastanieda, Alla"]
[Black "Boons, Joris"]
[Result "1-0"]
[ECO "A46"]
[WhiteElo "1339"]
[BlackElo "1512"]
[Annotator "NA"]
[PlyCount "53"]
[EventDate "2019.07.06"]
[EventType "swiss"]
[EventCountry "NED"]
[SourceTitle "playchess.com"]
[Source "ChessBase"]
[SourceQuality "1"]
[TimeControl "40/5400+30:1800+30"]

1. d4 {[%emt 0:00:00]} Nf6 {[%emt 0:00:00]} 2. Nf3 {[%emt 0:00:00]} d5 {[%emt 0:00:00]} 3. c4 {[%emt 0:03:11]} g6 {[%emt 0:00:38]} 4. cxd5 {[%emt 0:01:00]} Nxd5 {[%emt 0:00:04]} 5. e4 {[%emt 0:00:28]} Nf6 {[%emt 0:00:16]} 6. Nc3 {[%emt 0:02:00]} Bg7 {[%emt 0:00:16]} 7. Be2 {[%emt 0:01:17]} O-O {[%emt 0:00:19]} 8. O-O {[%emt 0:00:47]} e6 {[%emt 0:02:21]} 9. Qc2 {[%emt 0:03:03]} Nbd7 {[%emt 0:00:50]} 10. Rd1 {[%emt 0:03:29]} Qe7 {[%emt 0:01:06]} 11. Bf4 {[%emt 0:06:57]} c5 {[%emt 0:00:42]} 12. dxc5 {[%emt 0:01:35]} Nxc5 {[%emt 0:02:26]} 13. Bd6 {[%emt 0:01:47]} Qe8 {[%emt 0:07:58]} 14. Bxc5 {[%emt 0:00:43]} Bd7 {[%emt 0:00:04]} 15. Bxf8 {[%emt 0:00:14]} Bxf8 {[%emt 0:00:02]} 16. Qb3 {[%emt 0:01:27]} b6 {[%emt 0:00:24]} 17. Ne5 {[%emt 0:01:29]} Bc8 {[%emt 0:00:13]} 18. Bb5 {[%emt 0:01:12]} Qe7 {[%emt 0:00:38]} 19. Nc6 {[%emt 0:01:11]} Qc5 {[%emt 0:00:35]} 20. Na4 {[%emt 0:01:50]} Qh5 {[%emt 0:00:26]} 21. e5 {[%emt 0:02:34]} Ng4 {[%emt 0:00:39]} 22. Qh3 {[%emt 0:02:09]} Qf5 {[%emt 0:00:04]} 23. f3 {[%emt 0:01:09]} Qc2 {[%emt 0:01:49]} 24. Qxg4 {[%emt 0:04:48]} a6 {[%emt 0:00:38]} 25. Rac1 {[%emt 0:00:56]} Qxc1 {[%emt 0:01:45]} 26. Rxc1 {[%emt 0:00:12]} axb5 {[%emt 0:00:02]} 27. Nxb6 {[%emt 0:00:25]} 1-0

[Event "9th Amsterdam Science Park B 2019"]
[Site "Amsterdam"]
[Date "2019.07.14"]
[Round "9.10"]
[White "Belozerova, Olga"]
[Black "Lange, Rob"]
[Result "1/2-1/2"]
[ECO "D02"]
[WhiteElo "1276"]
[BlackElo "1293"]
[Annotator "NA"]
[PlyCount "57"]
[EventDate "2019.07.06"]
[EventType "swiss"]
[EventCountry "NED"]
[SourceTitle "playchess.com"]
[Source "ChessBase"]
[SourceQuality "1"]
[TimeControl "40/5400+30:1800+30"]

1. d4 {[%emt 0:00:00]} Nf6 {[%emt 0:00:00]} 2. Nf3 {[%emt 0:00:00]} d5 {[%emt 0:00:02]} 3. Bf4 {[%emt 0:00:00]} Nbd7 {[%emt 0:02:00]} 4. Nc3 {[%emt 0:00:35]} c5 {[%emt 0:01:19]} 5. e3 {[%emt 0:01:05]} cxd4 {[%emt 0:01:31]} 6. exd4 {[%emt 0:00:36]} a6 {[%emt 0:00:30]} 7. Bd3 {[%emt 0:00:32]} e6 {[%emt 0:01:38]} 8. O-O {[%emt 0:00:26]} Be7 {[%emt 0:03:51]} 9. Ne2 {[%emt 0:01:08]} b5 {[%emt 0:08:44]} 10. c3 {[%emt 0:01:47]} Nb6 {[%emt 0:01:48]} 11. Ne5 {[%emt 0:01:35]} Bb7 {[%emt 0:02:38]} 12. Qb3 {[%emt 0:05:01]} O-O {[%emt 0:15:30]} 13. Rac1 {[%emt 0:04:14]} Rc8 {[%emt 0:05:17]} 14. Bb1 {[%emt 0:02:14]} Bd6 {[%emt 0:10:56]} 15. Qc2 {[%emt 0:01:29]} g6 {[%emt 0:11:42]} 16. Qd3 {[%emt 0:04:11]} Nh5 {[%emt 0:03:22]} 17. Bh6 {[%emt 0:01:45]} Re8 {[%emt 0:01:19]} 18. Qf3 {[%emt 0:02:09]} Bxe5 {[%emt 0:02:07]} 19. dxe5 {[%emt 0:00:21]} Nd7 {[%emt 0:00:31]} 20. Qe3 {[%emt 0:01:49]} Qc7 {[%emt 0:01:54]} 21. f4 {[%emt 0:02:43]} Ng7 {[%emt 0:02:30]} 22. Bxg7 {[%emt 0:01:09]} Kxg7 {[%emt 0:00:06]} 23. Rf3 {[%emt 0:06:53]} Qb6 {[%emt 0:02:37]} 24. Qxb6 {[%emt 0:00:44]} Nxb6 {[%emt 0:00:02]} 25. Rg3 {[%emt 0:03:55]} Rc7 {[%emt 0:06:08]} 26. Bc2 {[%emt 0:06:01]} Rec8 {[%emt 0:01:24]} 27. Bb3 {[%emt 0:02:17]} Nc4 {[%emt 0:02:05]} 28. Bxc4 {[%emt 0:02:44]} Rxc4 {[%emt 0:01:12]} 29. Rd3 {[%emt 0:00:38]} 1/2-1/2